bitfinex-derivatives/quotes_SOLF0:USTF0_20260203
["timestamp","ask_amount","ask_price","bid_price","bid_amount"]
[1770135769967,209.87758906,100.88,100.81,74.14839867]
[1770135770367,8.9308,100.87,100.81,74.14839867]
[1770135772573,8.9317,100.86,100.81,74.14839867]
[1770135772875,212.06357505,100.87,100.81,74.14839867]
[1770135773468,8.9326,100.85,100.81,74.14839867]
[1770135773673,211.38365174,100.85,100.78,395.66]
[1770135773972,138.9685,100.84,100.75,395.68]
[1770135774471,211.38365174,100.85,100.75,395.68]
[1770135774767,211.42345174,100.82,100.75,395.68]
[1770135774969,72.42995174,100.8,100.71,12.21469825]
[1770135775162,72.42995174,100.8,100.67,139.1885]
[1770135775163,211.47855174,100.78,100.68,151.38789825]
[1770135775364,211.47855174,100.78,100.68,395.68]
[1770135775568,211.47855174,100.78,100.66,22.08849101]
[1770135775569,211.53375174,100.74,100.66,87.12960417]
[1770135775766,72.42995174,100.74,100.66,74.91490592]
[1770135775971,211.50795174,100.76,100.66,74.91490592]
[1770135776172,211.52085174,100.75,100.66,74.91490592]
[1770135776577,211.52085174,100.75,100.66,83.86410592]
[1770135776578,81.37165174,100.75,100.66,83.86410592]
[1770135776775,211.52075174,100.75,100.66,83.86410592]
[1770135776975,148.0488,100.74,100.66,74.91490592]
[1770135777170,220.47875174,100.74,100.66,74.91490592]
[1770135777367,81.37255174,100.74,100.66,74.91490592]
[1770135777674,148.0611,100.73,100.66,74.91490592]
[1770135778075,8.9435,100.73,100.66,74.91490592]
[1770135778278,8.9444,100.72,100.66,74.91490592]
[1770135779079,72.42995174,100.73,100.66,74.91490592]
[1770135780278,139.1335,100.72,100.66,74.91490592]
[1770135780779,139.1335,100.72,100.63,77.69439228]
[1770135781080,144.3651384,100.73,100.64,74.91490592]
[1770135781081,81.37375174,100.73,100.64,74.91490592]
[1770135781281,139.1312,100.72,100.64,74.91490592]
[1770135781578,211.55005174,100.73,100.64,74.91490592]
[1770135781779,72.42995174,100.73,100.65,74.91490592]
[1770135782677,72.42995174,100.73,100.65,83.86490592]
[1770135782873,72.42995174,100.73,100.66,74.91490592]
[1770135783184,81.37255174,100.74,100.66,83.86400592]
[1770135783578,72.42995174,100.76,100.67,74.91490592]
[1770135783782,72.42995174,100.74,100.67,74.91490592]
[1770135783978,211.53855174,100.74,100.67,74.91490592]
[1770135784378,8.9436,100.73,100.67,74.91490592]
[1770135784576,139.1176,100.73,100.67,74.91490592]
[1770135784783,8.9443,100.72,100.67,74.91490592]
[1770135785686,211.53855174,100.74,100.67,74.91490592]
[1770135786276,535.1167,100.76,100.67,74.91490592]
[1770135786277,211.50665174,100.76,100.67,74.91490592]
[1770135786680,72.42995174,100.75,100.67,74.91490592]
[1770135787384,211.55305174,100.73,100.67,74.91490592]
[1770135787583,211.55305174,100.73,100.65,74.91490592]
[1770135788083,139.1317,100.72,100.65,74.91490592]
[1770135788281,211.55305174,100.73,100.65,74.91490592]
[1770135788479,72.42995174,100.72,100.65,74.91490592]
[1770135788675,8.9451,100.71,100.65,74.91490592]
[1770135789285,8.9451,100.71,100.57,215.85547254]
[1770135789286,72.42995174,100.71,100.57,215.85547254]
[1770135789586,72.42995174,100.71,100.59,76.52867254]
[1770135789587,139.2044,100.67,100.59,76.52867254]
[1770135789788,144.4431384,100.68,100.59,76.52867254]
[1770135789980,148.1501,100.67,100.59,76.52867254]
[1770135790184,139.2219,100.66,100.59,76.52867254]
[1770135790385,139.2282,100.65,100.59,76.52867254]
[1770135790582,148.15,100.67,100.59,76.52867254]
[1770135791191,139.2303,100.65,100.59,76.52867254]
[1770135791392,139.2167,100.66,100.59,76.52867254]
[1770135791591,139.2311,100.65,100.59,76.52867254]
[1770135791988,139.2311,100.65,100.52,430.3953]
[1770135791989,148.1999,100.64,100.53,144.6374384]
[1770135792294,139.2311,100.65,100.5,583.4225]
[1770135792295,164.98298991,100.6,100.5,139.4343]
[1770135792489,25.68528991,100.6,100.5,535.6554]
[1770135792686,164.94778991,100.63,100.52,139.4078]
[1770135792989,148.2233,100.62,100.52,8.9619]
[1770135793191,148.2233,100.62,100.52,148.3692]
[1770135793387,8.9531,100.62,100.52,148.3692]
[1770135793586,8.9516,100.64,100.54,139.3801]
[1770135793991,148.1957,100.64,100.55,5.2472384]
[1770135794192,148.2113,100.63,100.56,74.91490592]
[1770135794389,139.2441,100.64,100.56,74.91490592]
[1770135794586,26.48606121,100.65,100.56,74.91490592]
[1770135794894,174.63556121,100.67,100.58,74.91490592]
[1770135795087,165.68716121,100.67,100.58,74.91490592]
[1770135795484,174.65076121,100.66,100.58,74.91490592]
[1770135796488,148.1804,100.65,100.58,74.91490592]
[1770135796693,8.9507,100.65,100.58,74.91490592]
[1770135797097,174.55494709,100.65,100.58,74.91490592]
[1770135797396,174.56934709,100.64,100.58,74.91490592]
[1770135797795,35.32714709,100.64,100.58,74.91490592]
[1770135797993,139.2286,100.65,100.58,74.91490592]
[1770135798190,139.2441,100.64,100.58,74.91490592]
[1770135798590,8.9515,100.64,100.58,74.91490592]
[1770135798794,26.12914663,100.63,100.56,74.91490592]
[1770135798995,139.26,100.63,100.56,74.91490592]
[1770135799203,165.39874663,100.62,100.53,74.91490592]
[1770135799401,26.12914663,100.62,100.53,74.91490592]
[1770135799701,35.08244663,100.62,100.53,83.87560592]
[1770135800004,139.3112,100.59,100.53,74.91490592]
[1770135800201,8.956,100.59,100.53,74.91490592]
[1770135800402,26.18990138,100.6,100.53,74.91490592]
[1770135800602,165.55724269,100.62,100.53,74.91490592]
[1770135801295,8.9544,100.61,100.53,74.91490592]
[1770135801701,165.52144269,100.65,100.55,72.92372276]
[1770135801902,165.52144269,100.65,100.56,72.92372276]
[1770135802298,29.39127681,100.63,100.53,139.392]
[1770135802600,139.3005,100.6,100.53,72.92372276]
[1770135802798,29.39127681,100.59,100.51,72.92372276]
[1770135803003,38.34737681,100.59,100.51,72.92372276]
[1770135803199,177.65907681,100.59,100.51,72.92372276]
[1770135803598,8.9569,100.58,100.51,72.92372276]
[1770135805196,8.9577,100.57,100.51,72.92372276]
[1770135805396,139.2982,100.6,100.51,72.92372276]
[1770135805801,8.9566,100.58,100.51,81.88642276]
[1770135806199,168.80158259,100.59,100.51,72.92372276]
[1770135807306,8.9575,100.57,100.51,72.92372276]
[1770135811403,168.80158259,100.59,100.51,72.92372276]
[1770135811608,38.44628259,100.59,100.52,72.92372276]
[1770135811908,29.51403992,100.61,100.52,72.92372276]
[1770135812506,169.03861439,100.6,100.52,72.92372276]
[1770135813005,29.74121439,100.56,100.49,72.92372276]
[1770135813406,8.9575,100.57,100.49,72.92372276]
[1770135813708,29.74121439,100.58,100.5,72.92372276]
[1770135814304,38.69781439,100.58,100.51,81.88642276]
[1770135814906,168.78143252,100.63,100.51,78.19629098]
[1770135815112,168.78143252,100.63,100.54,72.92372276]
[1770135815311,168.78143252,100.63,100.55,72.92372276]
[1770135815510,168.78143252,100.63,100.52,139.4065]
[1770135815511,29.51463252,100.58,100.5,72.92372276]
[1770135815813,168.83963252,100.58,100.5,72.92372276]
[1770135816005,8.9575,100.57,100.5,72.92372276]
[1770135816204,168.75605309,100.61,100.51,72.92372276]
[1770135816606,8.9558,100.59,100.52,72.92372276]
[1770135817311,8.9567,100.58,100.52,72.92372276]
[1770135819305,8.9583,100.57,100.52,72.92372276]
[1770135820012,28.83645546,100.58,100.52,72.92372276]
[1770135820510,8.9586,100.56,100.51,72.92372276]
[1770135821511,37.79385546,100.58,100.51,72.92372276]
[1770135821710,28.83645546,100.58,100.51,72.92372276]
[1770135822415,139.3123,100.59,100.51,72.92372276]
[1770135822613,164.94184468,100.59,100.51,72.92372276]
[1770135823112,25.62954468,100.58,100.51,72.92372276]
[1770135823703,164.92754468,100.6,100.51,72.92372276]
[1770135823907,25.62954468,100.59,100.51,72.92372276]
[1770135824104,165.37100415,100.6,100.52,72.92372276]
[1770135824306,8.9557,100.59,100.52,81.88542276]
[1770135824907,8.9568,100.58,100.52,72.92372276]
[1770135826116,8.9575,100.57,100.52,72.92372276]
[1770135826313,166.03111683,100.58,100.5,72.92372276]
[1770135826820,35.66301683,100.58,100.5,72.92372276]
[1770135827013,26.70561683,100.58,100.5,72.92372276]
[1770135828418,8.9575,100.57,100.5,81.88732276]
[1770135828815,8.9593,100.55,100.5,72.92372276]
[1770135829318,166.07297602,100.59,100.5,72.92372276]
[1770135829517,26.75867602,100.58,100.5,72.92372276]
[1770135829913,8.9584,100.56,100.5,72.92372276]
[1770135830317,26.65876308,100.57,100.5,72.92372276]
[1770135830921,8.9592,100.55,100.5,72.92372276]
[1770135831122,26.65876308,100.57,100.5,72.92372276]
[1770135831721,165.94057113,100.59,100.5,72.92372276]
[1770135832113,8.9574,100.57,100.5,72.92372276]
[1770135832411,165.96977979,100.58,100.51,70.19135398]
[1770135832620,8.9585,100.56,100.51,70.19135398]
[1770135833324,26.64397979,100.58,100.51,70.19135398]
[1770135833823,35.60127979,100.58,100.51,79.15405398]
[1770135834422,35.60127979,100.58,100.52,69.10269003]
[1770135835115,8.9558,100.59,100.52,78.06409003]
[1770135835621,26.57329514,100.6,100.52,78.06409003]
[1770135836422,8.9567,100.58,100.52,78.06409003]
[1770135839318,8.9567,100.58,100.52,96.5198436]
[1770135839625,8.9577,100.57,100.53,69.10269003]
[1770135840234,8.9567,100.58,100.53,69.10269003]
[1770135841322,8.9575,100.57,100.53,69.10269003]
[1770135842223,8.9567,100.58,100.53,69.10269003]
[1770135842419,25.30233962,100.6,100.54,69.10269003]
[1770135842824,164.61393962,100.59,100.53,18.45575357]
[1770135843022,164.61393962,100.59,100.52,87.5584436]
[1770135843422,8.9576,100.57,100.53,69.10269003]
[1770135843629,144.63976822,100.55,100.47,29.75]
[1770135843929,139.3948,100.53,100.47,60.75600663]
[1770135844233,139.3534,100.56,100.47,60.75600663]
[1770135844425,148.3116,100.56,100.46,139.4897]
[1770135844625,155.52929147,100.57,100.47,536.317]
[1770135844823,139.3554,100.56,100.47,396.84]
[1770135845223,16.17909147,100.55,100.47,396.84]
[1770135845428,155.50409147,100.58,100.48,5.27256822]
[1770135845634,139.3068,100.6,100.48,5.27256822]
[1770135845635,155.48589147,100.6,100.5,5.27256822]
[1770135845930,155.48589147,100.6,100.51,69.10269003]
[1770135847235,169.08619217,100.59,100.51,69.10269003]
[1770135847834,139.3255,100.58,100.51,69.10269003]
[1770135848128,159.17951394,100.58,100.51,69.10269003]
[1770135848434,139.3391,100.57,100.51,69.10269003]
[1770135848628,159.25551394,100.53,100.45,69.10269003]
[1770135848830,148.3713,100.52,100.45,69.10269003]
[1770135849031,159.26271394,100.52,100.45,69.10269003]
[1770135849230,159.26271394,100.52,100.41,541.67066822]
[1770135849231,148.4012,100.5,100.43,69.10269003]
[1770135849431,8.9642,100.5,100.43,69.10269003]
[1770135850032,148.4,100.5,100.43,69.10269003]
[1770135850633,8.965,100.49,100.43,69.10269003]
[1770135852435,148.416,100.49,100.43,69.10269003]
[1770135853028,8.965,100.49,100.43,69.10269003]
[1770135853237,148.4151,100.49,100.43,69.10269003]
[1770135853531,163.39762694,100.5,100.43,69.10269003]
[1770135853734,23.96182694,100.5,100.43,69.10269003]
[1770135854036,8.9633,100.51,100.43,69.10269003]
[1770135854440,8.9633,100.51,100.44,69.10269003]
[1770135854642,139.3791,100.55,100.45,74.37525825]
[1770135854939,159.01610171,100.53,100.46,69.10269003]
[1770135855528,139.4227,100.51,100.46,69.10269003]
[1770135855728,139.4087,100.52,100.46,69.10269003]
[1770135856139,139.3823,100.54,100.46,69.10269003]
[1770135856337,139.3667,100.55,100.46,69.10269003]
[1770135856538,139.3667,100.55,100.47,69.10269003]
[1770135856733,158.40849635,100.55,100.47,69.10269003]
[1770135856930,148.3412,100.54,100.47,69.10269003]
[1770135857334,139.3958,100.53,100.46,309.18]
[1770135857641,19.04179635,100.52,100.45,69.10269003]
[1770135859441,28.00389635,100.52,100.45,69.10269003]
[1770135860040,8.9621,100.52,100.45,69.10269003]
[1770135861640,164.390121,100.54,100.45,69.10269003]
[1770135861841,24.97167393,100.56,100.46,74.33777317]
[1770135862041,164.32507393,100.56,100.47,69.05697496]
[1770135862241,24.59156648,100.54,100.47,69.05697496]
[1770135862545,163.97556648,100.54,100.47,69.05697496]
[1770135862843,8.962,100.52,100.47,69.05697496]
[1770135864339,20.98796358,100.48,100.41,93.7152422]
[1770135864542,160.46546358,100.47,100.41,69.05697496]
[1770135864842,20.98796358,100.47,100.41,69.05697496]
[1770135865049,8.9662,100.48,100.41,69.05697496]
[1770135865442,139.4672,100.48,100.41,69.05697496]
[1770135865848,8.9669,100.47,100.41,69.05697496]
[1770135868244,160.44136358,100.49,100.41,69.05697496]
[1770135869438,8.9655,100.48,100.41,69.05697496]
[1770135871849,8.9645,100.5,100.41,69.05697496]
[1770135872048,8.9645,100.5,100.42,69.05697496]
[1770135873548,8.9645,100.5,100.42,78.02757496]
[1770135874949,8.9647,100.49,100.42,69.05697496]
[1770135875453,27.02981766,100.53,100.45,69.05697496]
[1770135875646,139.3946,100.53,100.45,69.05697496]
[1770135875950,139.4221,100.51,100.43,69.05697496]
[1770135877250,139.4221,100.51,100.38,430.589]
[1770135877251,18.31555275,100.49,100.41,69.05697496]
[1770135877846,8.9658,100.48,100.41,78.02867496]
[1770135878949,156.52748032,100.51,100.41,78.02867496]
[1770135879253,139.4358,100.5,100.41,78.02867496]
[1770135879450,156.52748032,100.51,100.41,78.02867496]
[1770135879753,156.55868032,100.49,100.41,69.05697496]
[1770135879954,139.4775,100.47,100.41,69.05697496]
[1770135880149,8.9673,100.46,100.41,69.05697496]
[1770135881350,17.74612946,100.48,100.41,69.05697496]
[1770135881950,26.71242946,100.48,100.41,69.05697496]
[1770135882553,157.21102946,100.48,100.41,69.05697496]
[1770135883153,8.9673,100.46,100.41,69.05697496]
[1770135883354,157.21102946,100.48,100.41,69.05697496]
[1770135883650,17.74612946,100.48,100.41,69.05697496]
[1770135884446,17.57865289,100.46,100.4,397.14]
[1770135884642,17.57865289,100.46,100.39,69.05697496]
[1770135884849,157.04285289,100.48,100.39,69.05697496]
[1770135885151,157.04285289,100.48,100.4,69.05697496]
[1770135885853,17.57865289,100.48,100.4,69.05697496]
[1770135886451,8.9656,100.48,100.4,78.02947496]
[1770135886752,16.70897533,100.46,100.4,69.05697496]
[1770135886951,8.9675,100.46,100.4,69.05697496]
[1770135887147,156.18547533,100.48,100.4,69.05697496]
[1770135887344,156.17267533,100.48,100.4,69.05697496]
[1770135887944,8.9665,100.47,100.4,69.05697496]
[1770135888452,139.4788,100.47,100.4,69.05697496]
[1770135888950,8.9678,100.46,100.4,69.05697496]
[1770135889546,16.70897533,100.48,100.4,69.05697496]
[1770135889850,155.81515685,100.5,100.4,69.05697496]
[1770135890054,8.9646,100.49,100.42,69.05697496]
[1770135890755,8.9655,100.48,100.42,69.05697496]
[1770135891556,16.37935685,100.5,100.43,71.3749153]
[1770135892953,156.32020935,100.52,100.43,71.3749153]
[1770135893148,156.32020935,100.52,100.44,71.3749153]
[1770135893756,156.07099955,100.5,100.44,71.3749153]
[1770135894546,8.9656,100.48,100.44,71.3749153]
[1770135895048,16.63059955,100.5,100.44,71.3749153]
[1770135895253,25.59449955,100.5,100.44,71.3749153]
[1770135895758,139.5252,100.44,100.33,139.6655]
[1770135896054,139.5063,100.45,100.34,481.0972]
[1770135896256,8.9678,100.46,100.37,5.28079821]
[1770135896458,139.4737,100.48,100.38,397.16]
[1770135897256,169.28759395,100.47,100.38,397.16]
[1770135897852,169.28759395,100.47,100.39,72.27131823]
[1770135898052,8.9674,100.46,100.39,72.27131823]
[1770135898352,139.5255,100.44,100.37,72.27131823]
[1770135898546,171.51438077,100.46,100.37,72.27131823]
[1770135898751,8.9688,100.45,100.37,72.27131823]
[1770135899247,139.4795,100.47,100.37,72.27131823]
[1770135899248,171.50108077,100.47,100.39,72.27131823]
[1770135899453,8.9676,100.46,100.39,72.27131823]
[1770135899651,32.02158077,100.47,100.39,72.27131823]
[1770135899847,139.4924,100.46,100.39,72.27131823]
[1770135900050,32.11868206,100.41,100.32,478.43031823]
[1770135900252,32.11868206,100.41,100.33,72.27131823]
[1770135900454,171.64368206,100.44,100.33,72.27131823]
[1770135900651,171.64368206,100.44,100.33,77.55211644]
[1770135900652,139.534,100.43,100.33,77.55211644]
[1770135900856,139.534,100.43,100.33,86.53081644]
[1770135900857,8.971,100.42,100.33,86.53081644]
[1770135901151,171.62648206,100.45,100.35,72.27131823]
[1770135901356,8.9697,100.44,100.35,86.52901644]
[1770135901557,8.9697,100.44,100.37,72.27131823]
[1770135902148,171.62648206,100.45,100.37,72.27131823]
[1770135902149,32.11868206,100.45,100.37,72.27131823]
[1770135902349,148.4602,100.46,100.38,72.27131823]
[1770135902350,8.968,100.46,100.38,72.27131823]
[1770135902953,8.968,100.46,100.39,72.27131823]
[1770135904457,8.9658,100.48,100.41,72.27131823]
[1770135904760,557.6303,100.53,100.45,72.27131823]
[1770135904761,175.46050998,100.53,100.45,72.27131823]
[1770135904957,8.9625,100.52,100.45,72.27131823]
[1770135905353,139.3595,100.56,100.45,72.27131823]
[1770135905354,175.42070998,100.55,100.45,72.27131823]
[1770135905654,8.9607,100.54,100.45,81.23921823]
[1770135905853,173.38910957,100.53,100.45,72.27131823]
[1770135906455,33.99490957,100.5,100.43,72.27131823]
[1770135906656,173.40310957,100.52,100.43,72.27131823]
[1770135906851,139.3942,100.53,100.39,72.27131823]
[1770135906852,33.99490957,100.47,100.39,72.27131823]
[1770135907658,173.47450957,100.47,100.39,72.27131823]
[1770135909056,8.9684,100.45,100.39,72.27131823]
[1770135909258,31.36221445,100.44,100.36,72.27131823]
[1770135909454,170.89531445,100.43,100.34,72.27131823]
[1770135909854,176.14851266,100.45,100.34,81.24901823]
[1770135910262,8.9701,100.43,100.36,72.27131823]
[1770135910764,139.5055,100.45,100.36,72.27131823]
[1770135910957,170.90017589,100.45,100.37,72.27131823]
[1770135911159,139.5198,100.44,100.37,72.27131823]
[1770135911461,170.90017589,100.45,100.37,72.27131823]
[1770135911658,139.492,100.46,100.37,72.27131823]
[1770135912258,139.5072,100.45,100.37,72.27131823]
[1770135912655,167.5831823,100.44,100.37,72.27131823]
[1770135914068,8.9701,100.43,100.37,72.27131823]
[1770135914266,28.0635823,100.44,100.37,72.27131823]
[1770135914467,170.25932336,100.46,100.37,72.27131823]
[1770135914666,164.97852515,100.46,100.37,72.27131823]
[1770135914963,25.48652515,100.41,100.34,72.27131823]
[1770135915760,34.45912515,100.41,100.34,72.27131823]
[1770135915966,164.40142732,100.43,100.34,72.27131823]
[1770135917364,24.86712732,100.43,100.35,72.27131823]
[1770135917767,33.83902732,100.41,100.33,72.27131823]
[1770135918164,14.12470141,100.43,100.33,72.27131823]
[1770135918366,14.12470141,100.43,100.35,72.27131823]
[1770135918663,153.66000141,100.43,100.35,72.27131823]
[1770135918869,8.971,100.42,100.35,72.27131823]
[1770135919070,14.12470141,100.43,100.35,72.27131823]
[1770135919865,17.36374942,100.46,100.36,72.27131823]
[1770135920167,139.4918,100.46,100.38,72.27131823]
[1770135920371,12.06998119,100.44,100.37,397.34]
[1770135920864,8.97,100.43,100.37,397.34]
[1770135921669,12.06998119,100.44,100.37,397.34]
[1770135921873,12.06998119,100.44,100.37,471.65433802]
[1770135922071,11.81166077,100.46,100.38,74.31433802]
[1770135922472,151.31796077,100.45,100.38,74.31433802]
[1770135923172,8.9699,100.43,100.38,74.31433802]
[1770135923767,151.38716077,100.4,100.32,74.31433802]
[1770135924168,11.81166077,100.4,100.32,74.31433802]
[1770135924374,8.9736,100.39,100.32,74.31433802]
[1770135925577,8.9748,100.38,100.32,74.31433802]
[1770135926778,11.81166077,100.4,100.32,74.31433802]
[1770135927174,8.9745,100.38,100.32,74.31433802]
[1770135928481,11.81166077,100.4,100.32,74.31433802]
[1770135929771,8.9736,100.39,100.32,74.31433802]
[1770135929979,22.74588577,100.39,100.32,74.31433802]
[1770135930372,162.33878577,100.39,100.32,74.31433802]
[1770135930573,22.74588577,100.33,100.28,74.31433802]
[1770135930775,45.85243392,100.31,100.28,8.987e-05]
[1770135930979,213.83918024,100.33,100.21,139.8392]
[1770135931180,213.87858024,100.3,100.19,295.07215459]
[1770135931378,74.16248024,100.33,100.22,139.8249]
[1770135931579,213.83678024,100.33,100.21,146.86345309]
[1770135931785,74.16248024,100.32,100.22,139.8251]
[1770135932175,83.14238024,100.32,100.23,406.4477]
[1770135932479,74.16248024,100.35,100.24,139.796]
[1770135932676,74.16248024,100.35,100.25,139.7806]
[1770135932874,74.16248024,100.35,100.26,74.31433802]
[1770135933077,74.16248024,100.35,100.27,83.29823802]
[1770135933682,74.16248024,100.35,100.28,74.31433802]
[1770135933878,74.16248024,100.35,100.28,471.85433802]
[1770135934085,74.16248024,100.38,100.3,74.31433802]
[1770135934284,74.16248024,100.38,100.31,74.31433802]
[1770135936087,83.13488024,100.41,100.31,83.29473802]
[1770135936286,83.13488024,100.41,100.32,471.89433802]
[1770135936782,74.16248024,100.41,100.33,471.89433802]
[1770135936987,74.16248024,100.41,100.34,74.31433802]
[1770135937289,83.13438024,100.41,100.34,74.31433802]
[1770135937585,74.16248024,100.4,100.34,74.31433802]
[1770135937986,8.9721,100.41,100.34,74.31433802]
[1770135938183,219.00104847,100.43,100.34,74.31433802]
[1770135938184,213.71388024,100.42,100.34,74.31433802]
[1770135938488,8.9722,100.41,100.34,74.31433802]
[1770135938785,83.13468024,100.41,100.34,74.31433802]
[1770135940087,74.16248024,100.39,100.31,74.31433802]
[1770135940489,83.13638024,100.39,100.31,83.29473802]
[1770135940687,74.16248024,100.39,100.31,83.29473802]
[1770135941785,139.5629,100.41,100.32,74.31433802]
[1770135941786,74.16248024,100.41,100.32,74.31433802]
[1770135942686,74.16248024,100.41,100.33,83.29303802]
[1770135942878,139.5806,100.4,100.33,397.56]
[1770135943083,279.1645,100.4,100.3,74.31433802]
[1770135943478,83.13478024,100.41,100.32,74.31433802]
[1770135943786,83.13478024,100.41,100.33,3.24822119]
[1770135943984,83.13478024,100.41,100.34,3.24822119]
[1770135944184,83.13478024,100.41,100.35,3.24822119]
[1770135944385,83.13478024,100.41,100.36,3.24822119]
[1770135944586,74.16248024,100.41,100.37,3.24822119]
[1770135944888,74.16248024,100.41,100.38,3.24822119]
[1770135945086,74.16248024,100.41,100.33,83.29303802]
[1770135945683,397.56,100.53,100.33,74.31433802]
[1770135945887,74.16248024,100.46,100.39,74.31433802]
[1770135946089,74.16248024,100.46,100.37,79.52]
[1770135946386,74.16248024,100.46,100.37,153.83433802]
[1770135947291,74.16248024,100.46,100.38,83.28853802]
[1770135948386,74.16248024,100.46,100.39,83.28763802]
[1770135949489,74.16248024,100.46,100.39,480.78763802]
[1770135949686,74.16248024,100.49,100.4,83.28683802]
[1770135949989,74.16248024,100.49,100.42,74.31433802]
[1770135950191,74.16248024,100.51,100.43,8.9699]
[1770135950394,213.63438802,100.54,100.44,71.53175004]
[1770135950593,74.24078802,100.53,100.44,465.59175004]
[1770135951396,83.20188802,100.53,100.44,474.56065004]
[1770135951798,74.24078802,100.53,100.46,71.53175004]
[1770135951995,8.9599,100.55,100.46,71.53175004]
[1770135952294,74.24078802,100.56,100.47,468.99175004]
[1770135952499,74.24078802,100.59,100.5,71.53175004]
[1770135952996,83.19538802,100.61,100.52,71.53175004]
[1770135953298,74.24078802,100.61,100.54,71.53175004]
[1770135953505,70.49254373,100.64,100.56,72.10077563]
[1770135953692,70.49254373,100.67,100.58,72.10077563]
[1770135953895,70.49254373,100.67,100.59,72.10077563]
[1770135954093,209.66354373,100.7,100.59,211.40797563]
[1770135954294,70.49254373,100.69,100.6,72.10077563]
[1770135954895,209.69114373,100.68,100.6,72.10077563]
[1770135955196,70.49254373,100.67,100.58,469.46077563]
[1770135955400,75.78631196,100.65,100.55,469.38077563]
[1770135955595,139.2285,100.65,100.56,72.10077563]
[1770135955797,209.69364373,100.67,100.59,72.10077563]
[1770135955994,79.44124373,100.67,100.59,72.10077563]
[1770135956198,209.71254373,100.66,100.59,72.10077563]
[1770135956402,209.71254373,100.66,100.56,72.10077563]
[1770135956599,209.72084373,100.65,100.56,72.10077563]
[1770135956801,70.49254373,100.65,100.56,72.10077563]
[1770135957001,70.49254373,100.64,100.57,75.29647386]
[1770135957200,70.49254373,100.64,100.57,72.10077563]
[1770135958005,70.49254373,100.64,100.54,72.10077563]
[1770135958006,139.2741,100.62,100.54,72.10077563]
[1770135958197,209.75094373,100.63,100.55,3.19090253]
[1770135958396,70.49254373,100.63,100.54,72.10077563]
[1770135958604,70.49254373,100.68,100.58,72.10077563]
[1770135958802,209.64824373,100.71,100.6,72.10077563]
[1770135959099,70.49254373,100.7,100.61,75.28726261]
[1770135959302,209.65284373,100.7,100.61,72.10077563]
[1770135959705,79.43874373,100.7,100.61,72.10077563]
[1770135960907,79.43874373,100.7,100.59,397.08]
[1770135960908,70.49254373,100.68,100.59,397.08]
[1770135961108,70.49254373,100.68,100.6,3.17857782]
[1770135961410,209.72114373,100.65,100.58,72.10077563]
[1770135961606,79.44314373,100.65,100.58,72.10077563]
[1770135961910,209.72114373,100.65,100.55,469.04077563]
[1770135962110,70.49254373,100.64,100.56,72.10077563]
[1770135962410,70.49254373,100.63,100.56,72.10077563]
[1770135964404,84.73621196,100.66,100.57,72.10077563]
[1770135964706,209.73554373,100.64,100.57,72.10077563]
[1770135965808,70.49254373,100.64,100.57,72.10077563]
[1770135966010,70.49254373,100.65,100.57,72.10077563]
[1770135966209,209.73534373,100.64,100.55,469.04077563]
[1770135966409,223.99611196,100.63,100.55,469.04077563]
[1770135966909,84.73881196,100.63,100.55,469.04077563]
[1770135967308,70.49254373,100.66,100.57,72.10077563]
[1770135967611,209.67924373,100.68,100.59,72.10077563]
[1770135967814,8.9464,100.7,100.61,72.10077563]
[1770135968002,209.66524373,100.69,100.61,72.10077563]
[1770135968202,209.70674373,100.66,100.58,72.10077563]
[1770135968407,144.61736823,100.59,100.49,72.10077563]
[1770135968603,139.2862,100.61,100.51,72.10077563]
[1770135968808,139.2862,100.61,100.49,139.4465]
[1770135968809,144.56476823,100.62,100.53,72.10077563]
[1770135969107,139.3131,100.59,100.53,72.10077563]
[1770135969316,139.311,100.59,100.53,72.10077563]
[1770135969510,139.2835,100.61,100.53,72.10077563]
[1770135969706,215.05731196,100.62,100.53,72.10077563]
[1770135970106,209.76354373,100.62,100.53,72.10077563]
[1770135970310,8.9543,100.61,100.53,72.10077563]
[1770135970917,70.49254373,100.62,100.53,81.06157563]
[1770135971109,70.49254373,100.62,100.52,536.1869]
[1770135971110,139.3335,100.58,100.47,72.10077563]
[1770135971308,75.78631196,100.56,100.47,72.10077563]
[1770135971510,84.74501196,100.56,100.47,72.10077563]
[1770135971716,70.49254373,100.56,100.47,72.10077563]
[1770135972109,209.84524373,100.56,100.47,72.10077563]
[1770135972307,215.13901196,100.56,100.47,72.10077563]
[1770135972506,75.78631196,100.56,100.47,72.10077563]
[1770135973613,70.49254373,100.56,100.47,72.10077563]
[1770135974012,209.84534373,100.56,100.47,72.10077563]
[1770135974218,215.13911196,100.56,100.47,72.10077563]
[1770135974418,84.74501196,100.56,100.47,72.10077563]
[1770135976216,70.49254373,100.56,100.47,72.10077563]
[1770135976425,75.78631196,100.56,100.47,72.10077563]